Cogmind - Beta 9.6 @@@ ROGUE MODE // 2020.06.05 @ 10:18:35 Player: OccultOnion Result: Destroyed by G-47 Trooper with Particle Gun Performance ------------- Evolutions (2) 1000 Regions Visited (3) 600 Robots Destroyed (16) 80 Value Destroyed (347) 347 Prototype IDs (0) 0 Alien Tech Used (0) 0 Bonus (0) 0 TOTAL SCORE: 2027 Bonus ------- None Cogmind --------- Core Integrity 0/550 Matter 277/300 Energy 100/100 System Corruption 4% Temperature Cool (9) Movement Core (150) Ox2 Location -8/Materials Parts ------- > --- POWER (1) -------- (None) > --- PROPULSION (4) --- (None) > --- UTILITY (4) ------ Medium Storage Unit Advanced Visual Processing Unit > --- WEAPON (2) ------- (None) > --- INVENTORY (8) ---- Signal Interpreter Transmission Jammer Peak State ------------ > --- POWER ------------ Light Ion Engine > --- PROPULSION ------- Aluminum Leg Aluminum Leg Wheel > --- UTILITY ---------- Improved Heat Sink Small Storage Unit Sensor Array > --- WEAPON ----------- EM Pulse Gun EM Pulse Gun > --- INVENTORY -------- Light Treads Medium Storage Unit Signal Interpreter Beam Cannon [Rating: 11] Favorites ----------- Power Light Ion Engine Engine Light Ion Engine Propulsion Aluminum Leg Treads Light Treads Leg Aluminum Leg Wheel Wheel Flight Unit Flight Unit Utility Small Storage Unit Device Improved Heat Sink Storage Small Storage Unit Processor Advanced Visual Processing Unit Weapon EM Pulse Gun Energy Gun EM Pulse Gun Energy Cannon Beam Cannon Ballistic Gun Light Assault Rifle Build | -11 -10 -9 -8 ------- Run | Scr Mat Mat Mat Slots Evolved 4 | . . 2 2 Power . | . . . . Propulsion 2 | . . 1 1 Utility 2 | . . 1 1 Weapon . | . . . . Parts Attached 19 | . 5 3 11 Power 3 | . 1 . 2 Engine 3 | . 1 . 2 Core . | . . . . Reactor . | . . . . Propulsion 6 | . . 1 5 Treads 1 | . . . 1 Leg . | . . . . Wheel 1 | . . 1 . Hover . | . . . . Flight 4 | . . . 4 Utility 4 | . 1 1 2 Device 2 | . 1 1 . Storage 1 | . . . 1 Processor 1 | . . . 1 Hackware . | . . . . Protection . | . . . . Artifact . | . . . . Weapon 6 | . 3 1 2 Energy Gun 2 | . 2 . . Energy Cannon 1 | . . 1 . Ballistic Gun 3 | . 1 . 2 Ballistic Cannon . | . . . . Launcher . | . . . . Special Weapon . | . . . . Impact Weapon . | . . . . Slashing Weapon . | . . . . Piercing Weapon . | . . . . Special Melee Weapon . | . . . . Unidentified Prototypes . | . . . . Parts Lost 17 | . . 6 11 Power 3 | . . 1 2 Propulsion 7 | . . 1 6 Utility 3 | . . 1 2 Weapon 4 | . . 3 1 Highest Loss Streak 6 | . . 6 4 Average Slot Usage (%) 71 | . 88 94 33 Engine 7 | . 8 9 3 Leg 17 | . 28 19 2 Wheel 2 | . . 11 1 Flight 3 | . . . 9 Device 9 | . 8 22 2 Storage 11 | . 14 11 7 Processor 1 | . . . 3 Energy Gun 14 | . 22 19 . Ballistic Gun 2 | . 5 . . Naked Turns 10 | . . . 10 Heaviest Build 13 | 12 12 13 11 Greatest Support 20 | 20 20 10 16 Greatest Overweight (x) 3 | . . 1 3 Average Overweight (x) . | . . . . Largest Inventory Capacity 8 | 6 6 6 8 Average Capacity 6 | 6 6 6 6 Most Carried 6 | 6 6 5 4 Average Carried 4 | 6 5 3 2 Final Capacity 8 | 6 6 6 8 Final Carried 6 | 6 6 3 2 Class Distribution -------------------- 90% | Mutant 6% | Scavenger-Sprinter Dominant Class ---------------- Mutant | -10/Materials Mutant | -9/Materials Mutant | -8/Materials Resources | -11 -10 -9 -8 ----------- Run | Scr Mat Mat Mat Matter Collected 312 | 200 66 . 46 Remotely . | . . . . Salvage Created 487 | . 222 145 120 Parts 32 | . 16 9 7 Haulers Intercepted . | . . . . Recyclers Shooed . | . . . . Parts Field Recycled . | . . . . Retrieved Matter . | . . . . Parts Self-Destructed . | . . . . Prevented . | . . . . Kills | -11 -10 -9 -8 ------- Run | Scr Mat Mat Mat Combat Hostiles Destroyed 15 | . 6 5 4 Melee 4 | . . . 4 Guns 9 | . 5 4 . AOE 2 | . 1 1 . Classes Destroyed 4 | . 3 1 . Watcher 1 | . 1 . . Swarmer 9 | . 3 3 3 Grunt 5 | . 3 1 1 Sentry 1 | . . 1 . Best Kill Streak 4 | . 4 3 2 Combat Bots Only 4 | . 4 3 2 Max Kills in Single Turn 2 | . 2 2 1 Gunslinging 1 | . 1 . . Exploded 1 | . 1 1 . Melee 1 | . . . 1 Uniques/NPCs Destroyed . | . . . . Combat | -11 -10 -9 -8 -------- Run | Scr Mat Mat Mat Damage Taken 1855 | . 345 354 1156 Core 673 | . 72 38 563 Absorbed by Shields . | . . . . Core Remaining (%) 87 | 100 71 90 . Volleys Fired 44 | . 23 12 9 Largest 2 | . 2 2 1 Hottest 80 | . 80 80 25 Shots Fired 78 | . 46 23 9 Gun 77 | . 46 22 9 Cannon 1 | . . 1 . Launcher . | . . . . Special . | . . . . Kinetic 23 | . 14 . 9 Thermal 1 | . . 1 . Explosive . | . . . . Electromagnetic 54 | . 32 22 . Robot Hit Streak 10 | . 10 9 3 Robot Miss Streak 5 | . 2 3 5 Penetration Max . | . . . . Secondary Targets 5 | . 2 3 . Max Gunslinging Chain 1 | . 1 1 . Shots Hit Robots 50 | . 32 14 4 Core Hits 35 | . 9 7 19 Critical Hits . | . . . . Critical Kills . | . . . . Critical Parts Destroyed . | . . . . Melee Attacks . | . . . . Impact . | . . . . Slashing . | . . . . Piercing . | . . . . Sneak Attacks . | . . . . Combat Hostiles . | . . . . Follow-up Attacks . | . . . . Damage Inflicted 825 | . 478 223 124 Guns 642 | . 422 167 53 Cannons . | . . . . Explosions 112 | . 56 56 . Melee . | . . . . Ramming 71 | . . . 71 Kinetic 141 | . 88 . 53 Thermal 112 | . 56 56 . Explosive . | . . . . Electromagnetic 501 | . 334 167 . Impact . | . . . . Slashing . | . . . . Piercing . | . . . . Highest Corruption 4 | . 1 . 4 Average Corruption 3 | . 1 . 3 Corruption Purged . | . . . . Effects 3 | . . . 3 Energy Discharges 1 | . . . 1 Parts Rejected 1 | . . . 1 Data Loss (minor) 1 | . . . 1 Overload Shots . | . . . . Overflow Damage 13 | . 13 . . Projectiles . | . . . . Explosions 13 | . 13 . . Melee . | . . . . Knockbacks 1 | . . . 1 Impact 1 | . . . 1 Kinetic . | . . . . Secondary . | . . . . Self-Inflicted Damage 61 | . 33 . 28 Shots 1 | . 1 . . Rammed 33 | . . . 33 Targets Rammed 34 | . . . 34 Kicked 1 | . . . 1 Crushed . | . . . . Highest Temperature 171 | . 171 . . Average Temperature 72 | . 72 . . Received Heat Transfer 471 | . 120 117 234 Siege Activations . | . . . . Robots Corrupted . | . . . . Combat Hostiles . | . . . . Parts Fried 1 | . . 1 . Impact Corruptions . | . . . . Robots Melted . | . . . . Combat Hostiles . | . . . . Parts Melted . | . . . . Heat Transferred 150 | . 100 50 . Parts Sabotaged . | . . . . Parts Stolen . | . . . . Parts Stripped . | . . . . Power Chain Reactions 2 | . 1 1 . Missiles Intercepted . | . . . . Alert | -11 -10 -9 -8 ------- Run | Scr Mat Mat Mat Peak Influence 264 | . 252 264 139 Average Influence 141 | . 148 193 101 Maximum Alert Level 1 | . 1 1 . Low Security (%) 84 | 100 88 52 100 Level 1 15 | . 11 47 . Level 2 . | . . . . Level 3 . | . . . . Level 4 . | . . . . Level 5 . | . . . . High Security . | . . . . Max Security . | . . . . Squads Dispatched 1 | . 1 . . Investigation 1 | . 1 . . Extermination . | . . . . Reinforcement . | . . . . Assault . | . . . . Garrison . | . . . . Intercept . | . . . . Construction Impeded . | . . . . Haulers Reinforced . | . . . . Stealth | -11 -10 -9 -8 --------- Run | Scr Mat Mat Mat Distress Signals 1 | . 1 . . Communications Jammed . | . . . . Distress Signals . | . . . . Times Spotted 38 | . 18 11 9 Peak Tracking Total 6 | . 6 5 5 Tactical Retreats 4 | . 4 . . Traps | -11 -10 -9 -8 ------- Run | Scr Mat Mat Mat Traps Triggered 3 | . 3 . . Indirectly . | . . . . Trap Hack Attempts . | . . . . Triggered . | . . . . Disarmed . | . . . . Reprogrammed . | . . . . Reused . | . . . . Traps Extracted . | . . . . Installed . | . . . . Triggered . | . . . . Machines | -11 -10 -9 -8 ---------- Run | Scr Mat Mat Mat Machines Disabled . | . . . . Max in Single Turn . | . . . . Machines Sabotaged . | . . . . Garrisons Compromised . | . . . . Overloaded Fab Kills . | . . . . Fab Network Shutdowns . | . . . . Hacking | -11 -10 -9 -8 --------- Run | Scr Mat Mat Mat Machines Accessed 7 | . 2 5 . Terminals 7 | . 2 5 . Fabricators . | . . . . Repair Stations . | . . . . Recycling Units . | . . . . Scanalyzers . | . . . . Garrison Access . | . . . . Total Hacks 25 | . 8 17 . Successful 16 | . 5 11 . Failed 9 | . 3 6 . Catastrophic . | . . . . Database Lockouts . | . . . . Manual 14 | . 1 13 . Terminals 25 | . 8 17 . Fabricators . | . . . . Repair Stations . | . . . . Recycling Units . | . . . . Scanalyzers . | . . . . Garrison Access . | . . . . Terminal Hacks 8 | . 4 4 . Robot Analysis 1 | . . 1 . Emergency Access Points 1 | . 1 . . Alert Level 2 | . 1 1 . Locate Traps 2 | . 1 1 . Patrol Status 1 | . 1 . . Zone Layout 1 | . . 1 . Fabricator Hacks . | . . . . Repair Station Hacks . | . . . . Recycling Unit Hacks . | . . . . Scanalyzer . | . . . . Garrison Access Hacks . | . . . . Unauthorized Hacks 8 | . 1 7 . Terminals 8 | . 1 7 . Track 2 | . . 2 . Botnet 6 | . 1 5 . Fabricators . | . . . . Repair Stations . | . . . . Recycling Units . | . . . . Scanalyzers . | . . . . Garrison Access . | . . . . Data Cores Recovered . | . . . . Used . | . . . . Hacking Detections 7 | . 2 5 . Full Trace Events 1 | . . 1 . Feedback Events . | . . . . Feedback Blocked . | . . . . Robot Schematics Acquired . | . . . . Robots Built . | . . . . Matter . | . . . . Time . | . . . . Total Robot Build Rating . | . . . . Part Schematics Acquired . | . . . . Parts Built . | . . . . Matter . | . . . . Time . | . . . . Total Part Build Rating . | . . . . Parts Repaired . | . . . . Time . | . . . . Parts Recycled . | . . . . Recycled Matter . | . . . . Retrieved Matter . | . . . . Retrieved Components . | . . . . Parts Scanalyzed . | . . . . Part Schematics Acquired . | . . . . Parts Damaged . | . . . . Bothacking | -11 -10 -9 -8 ------------ Run | Scr Mat Mat Mat Used RIF Installer . | . . . . Robots Hacked . | . . . . Non-combat . | . . . . Combat . | . . . . Robot Hacks Applied . | . . . . Relay Couplers Released . | . . . . Robots Rewired . | . . . . Allies Hacked . | . . . . Hacks Repelled . | . . . . Allies | -11 -10 -9 -8 -------- Run | Scr Mat Mat Mat Total Allies . | . . . . Largest Group . | . . . . Highest-Rated Group . | . . . . Highest-Rated Ally . | . . . . Total Orders . | . . . . Ally Attacks . | . . . . Total Damage . | . . . . Kills . | . . . . Allies Corrupted . | . . . . Allies Melted . | . . . . Intel | -11 -10 -9 -8 ------- Run | Scr Mat Mat Mat Robot Analysis Total 1 | . . 1 . Derelict Logs Recovered . | . . . . Drone Launches . | . . . . Drone Recoveries . | . . . . Exploration | -11 -10 -9 -8 ------------- Run | Scr Mat Mat Mat Turns Passed 665 | 9 305 141 210 Spaces Moved 479 | 8 185 117 169 Core 50 | . . . 50 Treads . | . . . . Legs 196 | 8 185 . 3 Wheels 152 | . . 117 35 Hover . | . . . . Flight 81 | . . . 81 Fastest Speed 31 | 120 120 80 31 Average Speed 94 | 120 120 88 68 Slowest Speed 200 | 120 120 90 200 Overloaded Moves . | . . . . Propulsion Burnouts . | . . . . Robots Hopped 2 | . . . 2 Cave-ins Triggered . | . . . . Exploration Rate (%) 18 | 2 36 20 17 Regions Visited 3 Branch Regions . Pre-discovered Areas . | . . . . Known Exits Taken . | . . . . Unknown Exits Taken 3 | 1 1 1 . Scrap Searched . | . . . . Spaces Dug . | . . . . Terrain Destroyed 7 | . 3 4 . Melee . | . . . . Projectile . | . . . . AOE 7 | . 3 4 . Actions | -11 -10 -9 -8 --------- Run | Scr Mat Mat Mat Total 617 | 7 226 131 253 Wait 22 | . 2 . 20 Move 472 | 7 184 116 165 Hop 2 | . . . 2 Pick Up 19 | . 8 . 11 Fast Attach . | . . . . Attach 18 | . 4 3 11 Detach . | . . . . Swap 1 | . 1 . . Drop 5 | . 4 . 1 Fire 44 | . 23 12 9 Melee . | . . . . Ram 28 | . . . 28 Kick 6 | . . . 6 Crush . | . . . . Escape Stasis . | . . . . Rewire . | . . . . Trap . | . . . . Miscellaneous . | . . . . Route ------- -11/Scrapyard -10/Materials (discovered 2 exits: *Mat / [*Min]) -9/Materials -8/Materials History --------- Turn | Location | Event 1 | -11/Scrapyard | Discovered new exit (range 3) 10 | -11/Scrapyard | Entered Materials 108 | -10/Materials | Discovered new exit (range 12) 298 | -10/Materials | Discovered new exit (range 10) 308 | -10/Materials | Build established: Mutant 315 | -10/Materials | Entered another Materials area 315 | -9/Materials | Evolved 2 slots: Propulsion x1, Utility x1 454 | -9/Materials | Discovered new exit (range 4) 456 | -9/Materials | Entered another Materials area 456 | -8/Materials | Evolved 2 slots: Propulsion x1, Utility x1 485 | -8/Materials | Lost 6 parts (1p1n1u3w) 556 | -8/Materials | Lost 4 parts (3n1u) 565 | -8/Materials | Core integrity fell below 50% 653 | -8/Materials | Core integrity fell below 20% 665 | -8/Materials | Lost 4 parts (1p3n) 666 | -8/Materials | Destroyed by G-47 Trooper with Particle Gun Last Messages --------------- 00573_ Acquired Flight Unit. 00581_ Acquired 4 matter. 00581_ Acquired Flight Unit. 00584_ Acquired Lgt. Ion Engine. 00587_ Acquired Transmission Jammer. 00589_ Acquired 5 matter. 00591_ Acquired 2 matter. 00613_ C-30 ARC bursts open, deploying its payload. 00613_ L-31 Rogue unfolds itself. 00613_ G-47 Trooper unfolds itself. 00618_ K-01 Serf cleans the Nuclear Reactor. 00623_ Lgt. Ion Engine destroyed. 00631_ Flight Unit destroyed. 00642_ System corrupted: Flight Unit rejected. 00660_ Acquired Hpw. Shotgun. 00663_ Hpw. Shotgun severed. 00664_ Slammed into L-31 Rogue. 00665_ Lgt. Ion Engine destroyed. 00666_ System corrupted: Component data lost. 00666_ Slammed into Y-45 Defender. Map ----- +----------------------------------------------------+ | ??????????????# """"" ## #% "R" # | | ??????????????# """"" ## # """ # | | ?############## """"" ## # # | | ?# # """ ## ######## | | ?# # ##+#####??? | | ?# #+#########% %%%%#??? | | ?# # #???????# #??? | | ?# # #???????#% """%#??? | | #####+#####+### #???????# """%#??? | | #???????#% """%#??? | | #?#?????# #??? | | ###+######### #? ?????########??? | | ??# = ## ## ????#??????????? | | ??# ## ## ??? #??????????? | | ## """ """ # # ""? #??????????? | | / """ """ + # """ #??????????? | | ## """ """ # # """ #??????????? | | ??# # # """ ???????????? | | ??# ## ## ???????????? | | ??# ## ## !????????????? | | ??############ ## !????????????? | | ?????????????# ## ?????????????? | | ????????????## ## ???########??? | | ????????????# ##/##### l #??? | | ????????????+ = # #??? | | ????????????# #@"""" #??? | | ????????????# ##### gY"""" #??? | | ????????????##+###???# #Y"""" #??? | | ?????????????????????# # g #??? | | ?????????????????????###########??? | | ??????????????????????????????????? | | ??????????????????????????????????? | | ??????????????????????????????????? | | ??????????????????????????????????? | | ??????????????????????????????????? | | | | | | | | | | | | | | | | | | | | | | | | | | | | | | | +----------------------------------------------------+ Best States ------------- Heat Dissipation 45 Energy Generation 10 Energy Capacity 250 Matter Stores 300 Matter Capacity 300 Sight Range 20 Robot Scan Range 10 Terrain Scan Density 10 Evasion (%) 63 Item Schematics ----------------- None Robot Schematics ------------------ None Fabricated ------------ Nothing Alien Tech Used ----------------- None Achievements -------------- None Challenges ------------ None Game ------ Seed SurveybotAssaultCutter Manual? 0 Play Time 00:12:44 Cumulative 59.2 hours Start 2020.06.05 @ 10:08:56 End 2020.06.05 @ 10:18:35 Sessions 1 Manual Loads 0 Difficulty Rogue Special Mode None Game No. 141 Rogue 141 Adventurer 0 Explorer 0 Win Type - Total 0 Types 0/0/0/0/0/0/0 Lore% 31 Gallery% 50 Achievement% 32 Wizard Run 0 Options --------- ASCII 0 Keyboard 1 Movement Numpad Keybinds 0 Fullscreen 2 Font 18/SmallcapsGlow Map View 76x50 Tactical HUD 1 Map Filters NONE Filters NONE Steam 1 RUN: cd4c7dec-374b-4b7d-acc5-1b02c9c06754